Cogmind - Beta 15 *** ADVENTURER MODE // 2025.06.19 @ 18:22:56 // Winter2019/RPGLIKE Player: H_ Result: Destroyed by B-75 Beast with Heavy Plasma Cannon Performance ------------- Evolutions (2) 1000 Regions Visited (6) 1200 Robots Destroyed (77) 385 Value Destroyed (1852) 1852 Prototype IDs (35) 700 Alien Tech Used (0) 0 Bonus (306) 306 TOTAL SCORE: 5443 Bonus ------- Follower Combat Kills 122 Entered Garrisons 200 Friendly Fire -16 Cogmind --------- Core Integrity 0/600 Matter 300/300 Energy 145/160 System Corruption 0% Temperature Warm (138) Movement Rolling (90) Location -8/Garrison Parts ------- > --- POWER (1) -------- Light Nuclear Core > --- PROPULSION (2) --- Armored Wheel Armored Wheel > --- UTILITY (6) ------ Structural Scanner Improved Sensor Array Improved Signal Interpreter Makeshift Terrain Scanner Hacking Suite System Shield > --- WEAPON (2) ------- Heavy Particle Gun Heavy Particle Gun > --- INVENTORY (4) ---- Heavy Particle Gun Heavy Particle Gun Improved Grenade Launcher Improved Grenade Launcher Peak State ------------ > --- POWER ------------ Light Nuclear Core > --- PROPULSION ------- Armored Wheel Armored Wheel > --- UTILITY ---------- Structural Scanner Improved Sensor Array Improved Signal Interpreter Makeshift Terrain Scanner Hacking Suite System Shield > --- WEAPON ----------- Heavy Particle Gun Heavy Particle Gun > --- INVENTORY -------- Heavy Particle Gun Heavy Particle Gun Improved Grenade Launcher Improved Grenade Launcher [Rating: 36] Favorites ----------- Power Light Nuclear Core Engine Light Ion Engine Power Core Light Nuclear Core Propulsion Compact Wheel Wheel Compact Wheel Utility Seismic Detector Device Seismic Detector Processor Improved Signal Interpreter Hackware Hacking Suite Weapon EM Pulse Gun Energy Gun EM Pulse Gun Energy Cannon Particle Cannon Ballistic Gun Autogun Slashing Weapon Makeshift Axe Build | -11 -10 -10 -10 -9 -8 -8 ------- Run | Yrd Mat Min Exi Min Mat Gar Slots Evolved 7 | 4 1 . . 1 1 . Power . | . . . . . . . Propulsion 1 | 1 . . . . . . Utility 5 | 2 1 . . 1 1 . Weapon 1 | 1 . . . . . . Parts Attached 39 | 8 5 1 1 3 19 2 Power 7 | 1 . 1 . 1 4 . Engine 3 | 1 . 1 . 1 . . Core 4 | . . . . . 4 . Reactor . | . . . . . . . Propulsion 8 | 3 . . . . 3 2 Treads . | . . . . . . . Leg . | . . . . . . . Wheel 8 | 3 . . . . 3 2 Hover . | . . . . . . . Flight . | . . . . . . . Utility 11 | 2 4 . 1 . 4 . Device 6 | 2 2 . 1 . 1 . Storage . | . . . . . . . Processor 3 | . 2 . . . 1 . Hackware 2 | . . . . . 2 . Protection . | . . . . . . . Artifact . | . . . . . . . Weapon 13 | 2 1 . . 2 8 . Energy Gun 9 | 2 1 . . . 6 . Energy Cannon 1 | . . . . 1 . . Ballistic Gun 1 | . . . . 1 . . Ballistic Cannon . | . . . . . . . Launcher . | . . . . . . . Special Weapon . | . . . . . . . Impact Weapon . | . . . . . . . Slashing Weapon 2 | . . . . . 2 . Piercing Weapon . | . . . . . . . Special Melee Weapon . | . . . . . . . Unidentified Prototypes 2 | . . . . . 2 . Parts Lost 1 | . . . . . 1 . Power . | . . . . . . . Propulsion 1 | . . . . . 1 . Utility . | . . . . . . . Weapon . | . . . . . . . Highest Loss Streak 1 | . . . . . 1 . To Critical Strikes . | . . . . . . . Average Backups 1 | . . 1 1 2 2 4 Power . | . . . . . . . Propulsion . | . . . . . . . Utility . | . . . . . . . Weapon 1 | . . 1 1 2 2 4 Tool/Special . | . . . . . . . Unused Backups 4 | . . . . . 1 3 Power . | . . . . . . . Propulsion . | . . . . . . . Utility . | . . . . . . . Weapon 4 | . . . . . 1 3 Tool/Special . | . . . . . . . Average Slot Usage (%) 98 | . 98 100 100 95 98 100 Engine 7 | . 11 11 11 10 1 . Core 2 | . . . . . 7 9 Wheel 20 | . 23 22 22 21 16 18 Device 36 | . 26 44 44 42 33 27 Processor 3 | . 11 . . . 2 9 Hackware 6 | . . . . . 17 18 Energy Gun 16 | . 23 22 22 5 13 18 Energy Cannon 1 | . . . . 5 1 . Ballistic Gun 2 | . . . . 9 1 . Peak Build Rating 36 | 9 11 11 15 18 34 36 Average Rating 18 | 4 10 11 13 17 29 35 On Entrance 14 | . 9 11 11 15 18 34 Naked Turns . | . . . . . . . Heaviest Build 18 | 10 13 13 11 18 18 14 Greatest Support 37 | 37 37 37 37 37 37 37 Greatest Overweight (x) . | . . . . . . . Average Overweight (x) . | . . . . . . . Largest Inventory Capacity 4 | 2 2 2 2 3 4 4 Average Capacity 2 | 1 2 2 2 2 3 4 Most Carried 4 | 2 2 2 2 2 4 4 Average Carried 1 | . . 1 1 2 2 4 Final Capacity 4 | 2 2 2 2 3 4 4 Final Carried 4 | . 1 1 2 2 4 4 Class Distribution -------------------- 90% | Hacker-Skirmisher 7% | Hacker-Mutant Dominant Class ---------------- Hacker-Skirmisher | -10/Materials Hacker-Skirmisher | -10/Mines Hacker-Skirmisher | -10/Exiles Hacker-Skirmisher | -9/Mines Hacker-Skirmisher | -8/Materials Hacker-Skirmisher | -8/Garrison Resources | -11 -10 -10 -10 -9 -8 -8 ----------- Run | Yrd Mat Min Exi Min Mat Gar Matter Collected 927 | 280 50 10 . 108 459 20 Remotely . | . . . . . . . Salvage Created 2982 | 112 775 132 . 146 1331 486 Parts 176 | 6 51 11 . 14 87 7 Haulers Intercepted 7 | . 2 . . . 5 . Recyclers Shooed 1 | . . . . . 1 . Parts Field Recycled . | . . . . . . . Retrieved Matter . | . . . . . . . Parts Self-Destructed . | . . . . . . . Prevented . | . . . . . . . Kills | -11 -10 -10 -10 -9 -8 -8 ------- Run | Yrd Mat Min Exi Min Mat Gar Combat Hostiles Destroyed 53 | . 16 7 . 9 20 1 Melee 6 | . . . . . 6 . Guns 33 | . 12 4 . 6 10 1 Cannons 3 | . . . . 1 2 . AOE 7 | . 3 2 . 2 . . Classes Destroyed 13 | 2 5 1 . 1 4 . Worker 3 | . . 1 . . 2 . Builder 4 | . 3 . . . 1 . Tunneler 3 | 1 . . . 1 1 . Hauler 7 | . 2 . . . 5 . Recycler 1 | 1 . . . . . . Operator 1 | . . . . . 1 . Watcher 8 | . 3 . . . 5 . Swarmer 18 | . 3 3 . 6 5 1 Grunt 25 | . 13 4 . . 8 . Duelist 1 | . . . . . 1 . Sentry 5 | . . . . . 5 . Hunter 1 | . . . . . 1 . Assembled 3 | . . . . 3 . . Best Kill Streak 9 | 1 9 4 . 4 8 1 Combat Bots Only 8 | . 6 3 . 4 8 1 Max Kills in Single Turn 2 | 1 2 2 . 2 2 1 Gunslinging 1 | . . . . . 1 . Exploded 2 | . 2 1 . 2 . . Melee 1 | . . . . . 1 . Uniques/NPCs Destroyed . | . . . . . . . Combat | -11 -10 -10 -10 -9 -8 -8 -------- Run | Yrd Mat Min Exi Min Mat Gar Hostile Shots Fired 291 | . 72 25 . 29 128 37 Missed 87 | . 19 6 . 9 43 10 Hits 204 | . 53 19 . 20 85 27 Melee 4 | . . . . 1 3 . Projectile 200 | . 53 19 . 19 82 27 Critical Strikes 6 | . 2 . . 1 2 1 Damage Taken 2213 | . 494 175 . 144 1026 374 Core 1800 | . 407 152 . 116 829 296 Absorbed by Shields . | . . . . . . . Redirected to Core 1328 | . 274 72 . 82 641 259 Ignored by Resistances 656 | . 154 54 . 47 295 106 Core Remaining (%) 98 | 100 . . . 96 . . Volleys Fired 196 | 4 42 13 . 18 80 39 Largest 2 | 2 2 2 . 2 2 2 Hottest 110 | 80 80 80 . 91 110 110 Shots Fired 390 | 8 84 26 . 36 158 78 Gun 367 | 8 84 26 . 33 138 78 Cannon 23 | . . . . 3 20 . Launcher . | . . . . . . . Special . | . . . . . . . Kinetic 38 | . . . . 17 21 . Thermal 122 | 4 6 . . 3 31 78 Explosive . | . . . . . . . Electromagnetic 230 | 4 78 26 . 16 106 . Robot Hit Streak 29 | 5 18 17 . 12 21 29 Robot Miss Streak 3 | 1 2 1 . 3 3 2 Penetration Max . | . . . . . . . Secondary Targets 8 | . 4 1 . 2 1 . Max Gunslinging Chain 1 | . 1 1 . 1 1 . Shots Hit Robots 331 | 6 64 22 . 23 146 70 Core Hits 144 | 3 36 11 . 13 58 23 Critical Kills . | . . . . . . . Critical Parts Destroyed . | . . . . . . . Critical Strikes 11 | . 3 1 . . 4 3 Burn 3 | . . . . . . 3 Corrupt 4 | . 3 1 . . . . Sever 4 | . . . . . 4 . Melee Attacks 25 | . . . . . 25 . Impact . | . . . . . . . Slashing 25 | . . . . . 25 . Piercing . | . . . . . . . Sneak Attacks 1 | . . . . . 1 . Combat Hostiles . | . . . . . . . Follow-up Attacks . | . . . . . . . Damage Inflicted 6325 | 68 1221 398 . 400 2908 1330 Guns 4429 | 68 951 259 . 290 1531 1330 Cannons 331 | . . . . 40 291 . Explosions 697 | . 270 139 . 70 218 . Melee 868 | . . . . . 868 . Ramming . | . . . . . . . Kinetic 369 | . . . . 169 200 . Thermal 2655 | 32 326 139 . 110 718 1330 Explosive . | . . . . . . . Electromagnetic 2433 | 36 895 259 . 121 1122 . Impact . | . . . . . . . Slashing 868 | . . . . . 868 . Piercing . | . . . . . . . Highest Corruption . | . . . . . . . Average Corruption . | . . . . . . . Corruption Purged . | . . . . . . . Corruption Blocked . | . . . . . . . Overload Shots . | . . . . . . . Overflow Damage 58 | . . . . . 58 . Projectiles 4 | . . . . . 4 . Explosions . | . . . . . . . Melee 54 | . . . . . 54 . Knockbacks . | . . . . . . . Impact . | . . . . . . . Kinetic . | . . . . . . . Secondary . | . . . . . . . Self-Inflicted Damage 18 | . . . . . 18 . Shots 1 | . . . . . 1 . Rammed 1 | . . . . . 1 . Targets Rammed 1 | . . . . . 1 . Kicked . | . . . . . . . Crushed . | . . . . . . . Highest Temperature 175 | 56 175 48 . 95 102 117 Average Temperature 41 | 25 53 24 . 22 34 58 Received Heat Transfer 1153 | . 315 96 . 40 564 138 Siege Activations . | . . . . . . . Martial Activations . | . . . . . . . Shielding Activations . | . . . . . . . Robots Disrupted 1 | . . . . . 1 . Combat Hostiles 1 | . . . . . 1 . Robots Corrupted 5 | . 1 1 . . 3 . Combat Hostiles 4 | . 1 1 . . 2 . Parts Fried 10 | . 4 2 . . 4 . Impact Corruptions . | . . . . . . . Robots Melted 2 | . . . . . . 2 Combat Hostiles . | . . . . . . . Parts Melted 10 | . 1 . . . 2 7 Heat Transferred 4624 | 75 475 150 . 74 1038 2812 Parts Sabotaged . | . . . . . . . Parts Stolen . | . . . . . . . Parts Stripped . | . . . . . . . Power Chain Reactions 12 | . 5 2 . 1 4 . Alert | -11 -10 -10 -10 -9 -8 -8 ------- Run | Yrd Mat Min Exi Min Mat Gar Maximum Alert Level 1 | . 1 . . . 1 . Low Security (%) 79 | 100 67 100 . 100 62 100 Level 1 20 | . 32 . . . 37 . Level 2 . | . . . . . . . Level 3 . | . . . . . . . Level 4 . | . . . . . . . Level 5 . | . . . . . . . High Security . | . . . . . . . Max Security . | . . . . . . . Peak Influence 290 | 5 270 148 . 166 290 45 Initial 79 | . . 79 . . . . Average 82 | 1 102 50 . 32 122 16 Influence Increases 1863 | 10 567 179 . 201 861 45 Destroy 0b10 Robot/C 1120 | . 320 140 . 140 500 20 Destroy 0b10 Robot/NC 160 | 10 40 5 . 5 75 25 Destroy Leader 270 | . 70 30 . 20 150 . Allied During Kill 30 | . . . . 23 7 . Successful Hack 42 | . 21 . . . 21 . Select Force Hacks 60 | . 60 . . . . . Disable Machine 63 | . 45 . . 9 9 . Destroy Structure 43 | . 11 4 . 4 24 . Lose Combat Pursuer 75 | . . . . . 75 . Influence Decreases 1818 | 10 327 409 10 201 861 . Entered New Map 171 | . . 161 10 . . . Time Decay 1323 | 10 327 248 . 161 577 . Lost Part 10 | . . . . . 10 . Lost Ally 82 | . . . . 40 42 . Purge Threat 232 | . . . . . 232 . Squads Dispatched 4 | . 2 . . . 2 . Investigation 2 | . 2 . . . . . Extermination . | . . . . . . . Reinforcement 1 | . . . . . 1 . Assault . | . . . . . . . Garrison 1 | . . . . . 1 . Intercept . | . . . . . . . Searches Triggered . | . . . . . . . Construction Impeded . | . . . . . . . Haulers Reinforced . | . . . . . . . Active Scanning Responses . | . . . . . . . Cargo Convoy Interrupts . | . . . . . . . Stealth | -11 -10 -10 -10 -9 -8 -8 --------- Run | Yrd Mat Min Exi Min Mat Gar Distress Signals 2 | . . . . . 2 . Communications Jammed . | . . . . . . . Distress Signals . | . . . . . . . Times Spotted 88 | . 20 7 . 16 39 6 Peak Tracking Total 9 | . 3 3 . 4 9 6 Tactical Retreats 4 | . . . . . 4 . Traps | -11 -10 -10 -10 -9 -8 -8 ------- Run | Yrd Mat Min Exi Min Mat Gar Traps Triggered 4 | . 1 . . . 1 2 Indirectly . | . . . . . . . Trap Hack Attempts . | . . . . . . . Triggered . | . . . . . . . Disarmed . | . . . . . . . Reprogrammed . | . . . . . . . Reused . | . . . . . . . Traps Extracted . | . . . . . . . Installed . | . . . . . . . Triggered . | . . . . . . . Machines | -11 -10 -10 -10 -9 -8 -8 ---------- Run | Yrd Mat Min Exi Min Mat Gar Machines Disabled 8 | . 6 . . 1 1 . Max in Single Turn 4 | . 4 . . 1 1 . Machines Repaired . | . . . . . . . Machines Dismantled . | . . . . . . . Machines Sabotaged . | . . . . . . . Overloaded Fab Kills . | . . . . . . . Hacking | -11 -10 -10 -10 -9 -8 -8 --------- Run | Yrd Mat Min Exi Min Mat Gar Machines Accessed 26 | . 11 . 1 . 14 . Terminals 18 | . 8 . . . 10 . Fabricators . | . . . . . . . Repair Stations 1 | . 1 . . . . . Recycling Units 4 | . 2 . . . 2 . Scanalyzers 1 | . . . . . 1 . Garrison Access 1 | . . . . . 1 . Total Hacks 134 | . 52 . 1 . 81 . Successful 112 | . 44 . 1 . 67 . Failed 20 | . 7 . . . 13 . Catastrophic 2 | . . . . . 2 . Database Lockouts 2 | . 1 . . . 1 . Manual 84 | . 33 . 1 . 50 . Terminals 100 | . 38 . . . 62 . Fabricators . | . . . . . . . Repair Stations 1 | . 1 . . . . . Recycling Units 25 | . 13 . . . 12 . Scanalyzers 4 | . . . . . 4 . Garrison Access 3 | . . . . . 3 . Terminal Hacks 49 | . 18 . 1 . 30 . Record 1 | . . . . . 1 . Robot Analysis 8 | . 2 . . . 6 . Prototype ID Bank 5 | . 2 . . . 3 . Level Access Points 1 | . 1 . . . . . Branch Access Points 2 | . 1 . . . 1 . Emergency Access Points 4 | . 2 . . . 2 . Machine Index 1 | . . . . . 1 . Terminal Index 1 | . 1 . . . . . Repair Station Index 1 | . . . . . 1 . Recycling Unit Index 2 | . 1 . . . 1 . Scanalyzer Index 1 | . 1 . . . . . Alert Level 2 | . 1 . . . 1 . Unreport Threat 3 | . . . . . 3 . Locate Traps 3 | . 2 . . . 1 . Disarm Traps 1 | . . . . . 1 . Surveillance Status 1 | . . . . . 1 . Patrol Status 2 | . . . . . 2 . Transport Status 1 | . 1 . . . . . Hauler Manifests 1 | . . . . . 1 . Registered Components 2 | . 1 . . . 1 . Zone Layout 5 | . 2 . . . 3 . Proto ID Catalog 1 | . . . 1 . . . Fabricator Hacks . | . . . . . . . Repair Station Hacks . | . . . . . . . Recycling Unit Hacks 8 | . 5 . . . 3 . Retrieve Matter 4 | . 3 . . . 1 . Retrieve Components 4 | . 2 . . . 2 . Scanalyzer 3 | . . . . . 3 . Insert Component 1 | . . . . . 1 . Analyze 2 | . . . . . 2 . Garrison Access Hacks 1 | . . . . . 1 . Unlock Access 1 | . . . . . 1 . Unauthorized Hacks 51 | . 21 . . . 30 . Terminals 34 | . 14 . . . 20 . Track 5 | . 1 . . . 4 . Botnet 16 | . 8 . . . 8 . Disrupt 2 | . . . . . 2 . Operators 1 | . . . . . 1 . Skim 10 | . 5 . . . 5 . Fabricators . | . . . . . . . Repair Stations 1 | . 1 . . . . . Mechanics 1 | . 1 . . . . . Recycling Units 14 | . 6 . . . 8 . Monitor 3 | . 1 . . . 2 . Reject 3 | . 1 . . . 2 . Recyclers 3 | . 1 . . . 2 . Mask 3 | . 1 . . . 2 . Tunnel 2 | . 2 . . . . . Scanalyzers 1 | . . . . . 1 . Researchers 1 | . . . . . 1 . Garrison Access 1 | . . . . . 1 . Watchers 1 | . . . . . 1 . Data Cores Recovered 1 | . . . . . 1 . Used 1 | . . . . . 1 . Hacking Detections 19 | . 9 . . . 10 . Full Trace Events . | . . . . . . . Feedback Events . | . . . . . . . Feedback Blocked . | . . . . . . . Robot Schematics Acquired . | . . . . . . . Robots Built . | . . . . . . . Authchips . | . . . . . . . Time . | . . . . . . . Total Robot Build Rating . | . . . . . . . Part Schematics Acquired 1 | . . . . . 1 . Parts Built . | . . . . . . . Authchips . | . . . . . . . Time . | . . . . . . . Total Part Build Rating . | . . . . . . . Parts Repaired . | . . . . . . . Time . | . . . . . . . Parts Recycled . | . . . . . . . Recycled Matter . | . . . . . . . Retrieved Matter . | . . . . . . . Retrieved Components 25 | . 9 . . . 16 . Parts Scanalyzed 1 | . . . . . 1 . Part Schematics Acquired 1 | . . . . . 1 . Parts Damaged . | . . . . . . . Bothacking | -11 -10 -10 -10 -9 -8 -8 ------------ Run | Yrd Mat Min Exi Min Mat Gar Used RIF Installer . | . . . . . . . Robots Hacked . | . . . . . . . Non-combat . | . . . . . . . Combat . | . . . . . . . Robot Hacks Applied . | . . . . . . . Relay Couplers Released . | . . . . . . . Fabnet Peak Effective % . | . . . . . . . Robots Rewired 3 | . . . 3 . . . Allies Hacked . | . . . . . . . Hacks Repelled . | . . . . . . . Allies | -11 -10 -10 -10 -9 -8 -8 -------- Run | Yrd Mat Min Exi Min Mat Gar Total Allies 6 | . . . 3 3 . . Largest Group 5 | . . . 3 5 3 . Highest-Rated Group 99 | . . . 50 99 57 . Highest-Rated Ally 31 | . . . 21 31 31 . Total Orders . | . . . . . . . Ally Attacks 40 | . . . . 17 23 . Total Damage 435 | . . . . 117 318 . Kills 8 | . . . . 3 5 . Allies Corrupted . | . . . . . . . Allies Melted . | . . . . . . . Intel | -11 -10 -10 -10 -9 -8 -8 ------- Run | Yrd Mat Min Exi Min Mat Gar Active Infowar (turns) 4656 | 8 839 599 686 884 1497 143 Sensors 3816 | . 7 599 686 884 1497 143 Terrain 4656 | 8 839 599 686 884 1497 143 Structural 3996 | . 187 599 686 884 1497 143 Seismic 4050 | 7 839 599 686 884 1035 . T.N.C. 511 | . 511 . . . . . Robot Analysis Total 7 | . 2 . . . 5 . Derelict Logs Recovered 2 | . . 1 . 1 . . Drone Launches . | . . . . . . . Drone Recoveries . | . . . . . . . Exploration | -11 -10 -10 -10 -9 -8 -8 ------------- Run | Yrd Mat Min Exi Min Mat Gar Turns Passed 4712 | 64 839 599 686 884 1497 143 Spaces Moved 3783 | 41 649 543 650 761 1111 28 Core 3 | 3 . . . . . . Treads . | . . . . . . . Legs . | . . . . . . . Wheels 3780 | 38 649 543 650 761 1111 28 Hover . | . . . . . . . Flight . | . . . . . . . Fastest Speed 50 | 50 100 100 100 100 90 90 Average Speed 99 | 90 100 100 100 100 99 90 Slowest Speed 100 | 100 100 100 100 100 100 100 Overloaded Moves . | . . . . . . . Propulsion Burnouts . | . . . . . . . Robots Hopped . | . . . . . . . Potential Cave-ins . | . . . . . . . Cave-ins Triggered . | . . . . . . . Exploration Rate (%) 65 | 4 92 98 95 98 68 6 Regions Visited 6 Branch Regions 3 Pre-discovered Areas 5 | . 2 . . . 3 . Known Exits Taken 2 | . 1 . . . 1 . Unknown Exits Taken 4 | 1 . 1 1 1 . . Scrap Searched 4 | . . 2 . 2 . . Spaces Dug 1 | . . . . . 1 . Terrain Destroyed 45 | . 13 4 . 5 23 . Melee 1 | . . . . . 1 . Projectile 1 | . . . . 1 . . AOE 43 | . 13 4 . 4 22 . Terrain Rammed . | . . . . . . . Walls Destroyed . | . . . . . . . Machines Disabled . | . . . . . . . Actions | -11 -10 -10 -10 -9 -8 -8 --------- Run | Yrd Mat Min Exi Min Mat Gar Total 4316 | 59 754 573 686 852 1321 71 Wait 112 | . 21 3 18 63 7 . Move 3778 | 40 648 542 649 760 1111 28 Hop . | . . . . . . . Pick Up 31 | 6 7 2 1 . 15 . Fast Attach 7 | 2 . . . 2 3 . Attach 12 | 5 2 . . . 5 . Detach . | . . . . . . . Swap 39 | 1 3 1 1 1 30 2 Drop 29 | 1 2 2 1 3 18 2 Fire 196 | 4 42 13 . 18 80 39 Melee 25 | . . . . . 25 . Ram 1 | . . . . . 1 . Kick . | . . . . . . . Crush . | . . . . . . . Escape Stasis . | . . . . . . . Rewire 18 | . . . 16 . 2 . Trap . | . . . . . . . Miscellaneous 68 | . 29 10 . 5 24 . Route ------- -11/Scrapyard -10/Materials (discovered 5 exits: *Mat x3 / *Min x2) -10/Mines (discovered 4 exits: *Mat x2 / *Exi / [Sub]) -10/Exiles (discovered 2 exits: [*Min x2]) -9/Mines (discovered 2 exits: *Mat x2) -8/Materials (discovered 5 exits: *Fac x3 / *Sto / Gar) -8/Garrison History --------- Turn | Location | Event 8 | -11/Scrapyard | Upgraded with Propulsion slot (x1) 8 | -11/Scrapyard | Upgraded with Utility slot (x2) 8 | -11/Scrapyard | Upgraded with Weapon slot (x1) 15 | -11/Scrapyard | Discovered new exit (range 15) 65 | -11/Scrapyard | Entered Materials 169 | -10/Materials | Discovered new exit (range 6) 209 | -10/Materials | Discovered new exit (range 16) 273 | -10/Materials | Discovered new exit (range 11) 317 | -10/Materials | Build established: Hacker-Mutant 431 | -10/Materials | Discovered new exit (range 16) 529 | -10/Materials | Central database locked down 539 | -10/Materials | Identified exit to Mines 539 | -10/Materials | Identified exit to Materials 585 | -10/Materials | Loaded intel: 18 trap records 586 | -10/Materials | Reached level 2 605 | -10/Materials | Upgraded with Utility slot (x1) 633 | -10/Materials | Learned Storage emergency access door positions 669 | -10/Materials | Learned location of 2 exits from Subcaves 684 | -10/Materials | Build established: Hacker-Skirmisher 695 | -10/Materials | Learned Materials trap positions 711 | -10/Materials | Learned Storage stockpile data 716 | -10/Materials | Learned Storage emergency access door positions 717 | -10/Materials | Learned 2 Storage zone layouts 792 | -10/Materials | Learned 4 Subcaves zone layouts 904 | -10/Materials | Entered Mines 921 | -10/Mines | Learned Materials security intel 923 | -10/Mines | Reached level 3 988 | -10/Mines | Discovered new exit (range 15) 1072 | -10/Mines | Received a Rocket Launcher from a helpful Derelict 1326 | -10/Mines | Discovered new exit (range 9) 1330 | -10/Mines | Deemed a non-threat by the Exiles lab entrance 1503 | -10/Mines | Entered Exiles 1503 | -10/Exiles | Found Exiles lab destroyed 1522 | -10/Exiles | Discovered new exit (range 15) 1959 | -10/Exiles | Opened EX-Vault 2173 | -10/Exiles | Discovered new exit (range 10) 2189 | -10/Exiles | Entered Mines 2189 | -9/Mines | Accompanied by 3 allies 2191 | -9/Mines | Reached level 4 2253 | -9/Mines | Found DCF Scrap (13 items) 2367 | -9/Mines | Discovered new exit (range 5) 2377 | -9/Mines | Assembled infested the area 2382 | -9/Mines | Assisted by a Guerilla fighting off Assembled 2558 | -9/Mines | Joined a pair of Derelicts in attacking an 0b10 outpost 2616 | -9/Mines | Learned Materials terminal intel 2705 | -9/Mines | Upgraded with Utility slot (x1) 2733 | -9/Mines | Found a hidden stash of uninstalled traps 2736 | -9/Mines | Discovered new exit (range 15) 2741 | -9/Mines | Received a Mining Laser from a helpful Derelict 3073 | -9/Mines | Entered Materials 3073 | -8/Materials | Accompanied by 3 allies 3073 | -8/Materials | Discovered new exit (range 8) 3074 | -8/Materials | Loaded intel: 14 trap records 3075 | -8/Materials | Reached level 5 3075 | -8/Materials | Reached level 6 3076 | -8/Materials | Loaded intel: 12 terminal locations 3086 | -8/Materials | Led the pair of lost Derelicts to an unsafe place 3099 | -8/Materials | Identified exit to Storage 3185 | -8/Materials | Reached level 7 3188 | -8/Materials | Upgraded with Utility slot (x1) 3487 | -8/Materials | Discovered new exit (range 17) 3593 | -8/Materials | Core integrity fell below 50% 3597 | -8/Materials | Reached level 8 3632 | -8/Materials | Core integrity fell below 20% 3646 | -8/Materials | Identified exit to Factory 3661 | -8/Materials | Destroyed 8 combat bots 3691 | -8/Materials | Learned location of 3 exits from Factory 3728 | -8/Materials | Learned 4 Recycling zone layouts 3755 | -8/Materials | Learned location of Zion (-6) 3771 | -8/Materials | Learned location of Recycling (-8) 3778 | -8/Materials | Learned Storage terminal intel 3787 | -8/Materials | Learned Factory emergency access door positions 3805 | -8/Materials | Learned location of Storage (-8) 3832 | -8/Materials | Learned location of 3 exits from Factory 3945 | -8/Materials | Central database locked down 4194 | -8/Materials | Garrison activated, responded to threat 4203 | -8/Materials | Reached level 9 4570 | -8/Materials | Identified exit to Garrison 4570 | -8/Materials | Entered Garrison 4693 | -8/Garrison | Spotted B-75 Beast 4713 | -8/Garrison | Destroyed by B-75 Beast with Heavy Plasma Cannon Last Messages --------------- 04630_ C-30 ARC destroyed. 04643_ C-30 ARC suffers critical hit (Burn). 04646_ C-30 ARC critical meltdown. 04646_ Imp. Ion Engine melted. 04668_ C-30 ARC heat damages Arm. Wheel, Arm. Wheel. 04672_ Destroyed Arm. Wheel. 04672_ C-30 ARC suffers critical hit (Burn). 04675_ C-30 ARC heat damages Arm. Wheel. 04675_ Destroyed Imp. Ion Engine. 04675_ Arm. Wheel melted. 04675_ C-30 ARC destroyed. 04692_ Triggered Alarm Trap. 04692_ An alarm sounds. 04697_ Triggered Alarm Trap. 04697_ An alarm sounds. 04697_ G-47 Trooper destroyed. 04697_ S-10 Pest destroyed. 04703_ B-75 Beast suffers critical hit (Burn). 04704_ B-75 Beast heat spikes uncontrollably. 04711_ Critical hit (Burn: +37). Map ----- +----------------------------------------------------+ | ?????????????????????????????????????????????????? | | ?????????????????????????????????????????????????? | | ?????????????????????????????????????????????????? | | ?????????????????????????????????????????????????? | | ?????????????????????????????????????????????????? | | ?????????????????????????????????????????????????? | | ?????????????????????????????????????????????????? | | ?????????????????????????????????????????????????? | | ?????????????????????????????????????????????????? | | ?????????????????????????????????????????????????? | | ?????????????????????????????????????????????????? | | ?????????????????????????????????????????????????? | | ?????????????????????????###?????????????????????? | | ????????????????????????? #?????????????????????? | | ?????????????????????????BB#?????????????????????? | | ????????????????????????#BB#?????????????????????? | | ???????????????????????? ?????????????????????? | | ????????????????????????# =*?????????????????????? | | ???????????#######??????#[%#?????????????????????? | | ???????????#% =%########;g#?????????????????????? | | ???????????#* = #?????????????????????? | | ???????????#% #?????????????????????? | | ???????????# #### #????????????????? | | ???????????#%= %######## Y^ #????????????????? | | ???????????#######??????# ######????????????????? | | ????????????????????????#@ #?????????????????????? | | ????????????????????????# %#?????????????????????? | | ????????????????????????# #?????????????????????? | | ????????????????????????#% #?????????????????????? | | ????????????????????????# #?????????????????????? | | ????????????????????????# #?????????????????????? | | ????????????????????????# *#?????????????????????? | | ????????????????????????#=%#?????????????????????? | | ????????????????????????# [ ?????????????????????? | | ????????????????????????# ?????????????????????? | | ????????????????????????####?????????????????????? | | ?????????????????????????????????????????????????? | | ?????????????????????????????????????????????????? | | ?????????????????????????????????????????????????? | | ?????????????????????????????????????????????????? | | ?????????????????????????????????????????????????? | | ?????????????????????????????????????????????????? | | ?????????????????????????????????????????????????? | | ?????????????????????????????????????????????????? | | ?????????????????????????????????????????????????? | | ?????????????????????????????????????????????????? | | ?????????????????????????????????????????????????? | | ?????????????????????????????????????????????????? | | ?????????????????????????????????????????????????? | | ?????????????????????????????????????????????????? | +----------------------------------------------------+ Best States ------------- Heat Dissipation 43 Energy Generation 19 Energy Capacity 265 Matter Stores 300 Matter Capacity 300 Sight Range 20 Robot Scan Range 35 Terrain Scan Range 18 Terrain Scan Density 210 Resistance: KI 20 Resistance: TH 20 Resistance: EX 20 Resistance: EM 20 Resistance: I 20 Resistance: S 20 Resistance: P 20 Evasion (%) 44 Targeting Accuracy 5 Offensive Hacking 30 Defensive Hacking 15 Item Schematics ----------------- Mak. Axe | -8/Materials | Scanalyzed Robot Schematics ------------------ None Fabricated ------------ Nothing Repaired ---------- Nothing Alien Tech Used ----------------- None Achievements -------------- None Challenges ------------ None RPGLIKE | -11 -10 -10 -10 -9 -8 -8 --------- Run | Yrd Mat Min Exi Min Mat Gar Levels Raised 8 | . 1 1 . 1 5 . XP Earned 16816 | 4000 2425 1350 200 1497 6644 700 XP Spent 15975 | 4000 1500 . . 2940 7535 . Upgrades 39 | 11 4 . . 7 17 . Propulsion Slot 1 | 1 . . . . . . Utility Slot 5 | 2 1 . . 1 1 . Weapon Slot 1 | 1 . . . . . . Heat Dissipation 3 | . 1 . . . 2 . Energy Generation 1 | . 1 . . . . . Mass Support 1 | 1 . . . . . . Inventory Capacity 4 | 2 . . . 1 1 . Sight Range 4 | . . . . . 4 . Sensor Range 10 | . 1 . . 3 6 . Terrain Scan Density 2 | 1 . . . 1 . . Ranged Accuracy 4 | . . . . 1 3 . Hack Attack % 2 | 2 . . . . . . Hack Defense % 1 | 1 . . . . . . Protomatter Created 782 | . 265 148 . 28 332 9 Integrity Restored 1295 | . 500 178 . 92 525 . Core 1176 | . 407 152 . 92 525 . Parts 119 | . 93 26 . . . . Protomatter Decayed 390 | . 81 87 . 52 170 . Game ------ Seed EnergyRestorationBay Manual? 0 Play Time 01:14:52 Cumulative 202.2 hours Start 2025.06.19 @ 16:50:55 End 2025.06.19 @ 18:22:56 Sessions 1 Manual Loads 0 Difficulty Adventurer Special Mode Winter2019/RPGLIKE Game No. 49 Rogue 12 Adventurer 6 Explorer 31 Win Type - Total 4 Types 2/0/2/0/0/0/0/0/0/0 Lore% 55 Gallery% 64 Achievement% 70 Wizard Run 0 Options --------- Layout 0 ASCII 0 Keyboard 0 Movement Mouse Keybinds 0 Fullscreen 2 Font 24/Smallcaps Map View 76x50 Zoom Use 0% Tactical HUD 1 Map Filters NONE Filters NONE Steam 1 RUN: 8022c05f-3fe5-4ca7-a1ad-c04165e53b09